fUSD/lending_fUSD_20250302
["ID","MTS","AMOUNT","RATE_DAILY","PERIOD"]
[355133765,1740933045021,-150.0,0.00028596,2]
[355133767,1740933045031,-2300.0,0.000286,10]
[355133769,1740933045041,-150.0,0.00028627,2]
[355133771,1740933045050,-390.71392104,0.0002864,2]
[355133773,1740933045060,-763.93,0.00028665,2]
[355133776,1740933045070,-1134.8,0.00028665,2]
[355133778,1740933045080,-963.88,0.00028665,2]
[355133780,1740933045090,-500.0,0.00028665,2]
[355133781,1740933045099,-1533.95,0.00028665,2]
[355133783,1740933045108,-1124.85,0.00028665,2]
[355133784,1740933045118,-312.100828,0.00028665,2]
[355133786,1740933045127,-1433.65,0.00028665,2]
[355133788,1740933045136,-800.42,0.00028665,2]
[355133790,1740933045146,-183.874939,0.00028665,2]
[355133792,1740933045155,-155.83498,0.00028665,2]
[355133794,1740933045170,-5835.41,0.00028665,2]
[355133796,1740933045179,-736.17,0.00028665,2]
[355133798,1740933045189,-3330.98,0.00028665,2]
[355133800,1740933045198,-1910.47,0.00028665,2]
[355133802,1740933045207,-649.44,0.00028665,2]
[355133804,1740933045217,-560.059385,0.00028665,2]
[355133805,1740933045226,-1209.05,0.00028665,2]
[355133806,1740933045236,-169.793471,0.00028665,2]
[355133807,1740933045245,-2388.08,0.00028665,2]
[355133808,1740933045255,-2110.64,0.00028665,2]
[355133809,1740933045265,-2708.7,0.00028665,2]
[355133810,1740933045275,-1814.61,0.00028665,2]
[355133811,1740933045287,-1742.95,0.00028665,2]
[355133812,1740933045298,-2215.8,0.00028665,2]
[355133813,1740933045308,-500.0,0.00028665,2]
[355133814,1740933045317,-2314.72,0.00028665,2]
[355133815,1740933045327,-2871.07,0.00028665,2]
[355133816,1740933045337,-700.4,0.00028665,2]
[355133817,1740933045347,-3633.24,0.00028665,2]
[355133818,1740933045357,-500.0,0.00028665,2]
[355133819,1740933045368,-975.85,0.00028665,2]
[355133820,1740933045381,-500.0,0.00028665,2]
[355133821,1740933045391,-2215.46,0.00028665,2]
[355133822,1740933045505,-1669.71,0.00028665,2]
[355133823,1740933045526,-3249.91,0.00028665,2]
[355133825,1740933045536,-674.46,0.00028665,2]
[355133828,1740933045546,-150.0,0.00028687,2]
[355133830,1740933045556,-1190.3661367,0.00028688,2]
[355133832,1740933045566,-12529.27076866,0.00028699,2]
[355133833,1740933045576,-2300.0,0.000287,10]
[355133835,1740933045586,-5000.0,0.00028728,3]
[355133836,1740933045596,-150.0,0.00028755,2]
[355133838,1740933045606,-2359.0,0.000288,10]
[355133841,1740933045616,-150.82,0.00028829,2]
[355133842,1740933045626,-1780.43,0.00028839,2]
[355133844,1740933045636,-1766.43,0.00028839,2]
[355133846,1740933045646,-2064.99,0.00028839,2]
[355133848,1740933045660,-967.55,0.00028839,2]
[355133850,1740933045670,-2636.7,0.00028839,2]
[355133852,1740933045681,-3370.38,0.00028839,2]
[355133854,1740933045690,-500.0,0.00028839,2]
[355133856,1740933045700,-2527.69,0.00028839,2]
[355133858,1740933045710,-500.0,0.00028839,2]
[355133860,1740933045719,-1377.28,0.00028839,2]
[355133862,1740933045729,-1468.82,0.00028839,2]
[355133864,1740933045738,-2589.67,0.00028839,2]
[355133866,1740933045748,-500.0,0.00028839,2]
[355133868,1740933045757,-859.66,0.00028839,2]
[355133870,1740933045768,-3342.39,0.00028839,2]
[355133872,1740933045777,-2289.74,0.00028839,2]
[355133874,1740933045788,-1696.58,0.00028839,2]
[355133876,1740933045797,-1556.12,0.00028839,2]
[355133878,1740933045807,-1358.69,0.00028839,2]
[355133880,1740933045817,-2566.54,0.00028839,2]
[355133882,1740933045826,-1671.71,0.00028839,2]
[355133884,1740933045836,-500.0,0.00028839,2]
[355133886,1740933045846,-590.6,0.00028839,2]
[355133888,1740933045856,-1104.72,0.00028839,2]
[355133891,1740933045866,-500.0,0.00028839,2]
[355133894,1740933045876,-870.39,0.00028839,2]
[355133896,1740933045885,-1643.4,0.00028839,2]
[355133899,1740933045895,-500.0,0.00028839,2]
[355133902,1740933045904,-1124.31,0.00028839,2]
[355133905,1740933045920,-500.0,0.00028839,2]
[355133908,1740933045930,-1524.19,0.00028839,2]
[355133910,1740933045940,-500.0,0.00028839,2]
[355133913,1740933045950,-2167.92,0.00028839,2]
[355133915,1740933045959,-390.71392104,0.00028849,2]
[355133917,1740933045968,-193.2731185,0.00028855,2]
[355133919,1740933045978,-1276.1557458,0.00028859,2]
[355133921,1740933045988,-5793.94559355,0.00028866,5]
[355133923,1740933045998,-12529.27076866,0.0002889,2]
[355133925,1740933046007,-150.0,0.00028899,2]
[355133927,1740933046017,-763.93,0.00028939,2]
[355133929,1740933046027,-1134.8,0.00028939,2]
[355133930,1740933046037,-963.88,0.00028939,2]
[355133931,1740933046046,-500.0,0.00028939,2]
[355133932,1740933046055,-1533.95,0.00028939,2]
[355133933,1740933046069,-1124.85,0.00028939,2]
[355133934,1740933046085,-312.100828,0.00028939,2]
[355133935,1740933046095,-1433.65,0.00028939,2]
[355133936,1740933046104,-800.42,0.00028939,2]
[355133937,1740933046114,-5835.41,0.00028939,2]
[355133939,1740933046124,-736.17,0.00028939,2]
[355133941,1740933046133,-3330.98,0.00028939,2]
[355133943,1740933046144,-1910.47,0.00028939,2]
[355133945,1740933046153,-649.44,0.00028939,2]
[355133947,1740933046167,-560.059385,0.00028939,2]
[355133949,1740933046177,-1209.05,0.00028939,2]
[355133951,1740933046187,-2388.08,0.00028939,2]
[355133953,1740933046197,-2110.64,0.00028939,2]
[355133955,1740933046208,-2708.7,0.00028939,2]
[355133957,1740933046218,-1814.61,0.00028939,2]
[355133959,1740933046227,-1742.95,0.00028939,2]
[355133961,1740933046237,-2215.8,0.00028939,2]
[355133963,1740933046247,-500.0,0.00028939,2]
[355133965,1740933046256,-2314.72,0.00028939,2]
[355133967,1740933046266,-2871.07,0.00028939,2]
[355133969,1740933046276,-700.4,0.00028939,2]
[355133971,1740933046288,-3633.24,0.00028939,2]
[355133973,1740933046297,-500.0,0.00028939,2]
[355133975,1740933046314,-975.85,0.00028939,2]
[355133977,1740933046326,-500.0,0.00028939,2]
[355133979,1740933046338,-2215.46,0.00028939,2]
[355133981,1740933046348,-1669.71,0.00028939,2]
[355133983,1740933046358,-3249.91,0.00028939,2]
[355133985,1740933046369,-674.46,0.00028939,2]
[355133987,1740933046378,-289.5775361,0.00028995,4]
[355133989,1740933046388,-650.0,0.00029,2]
[355133991,1740933046398,-106106.72427918,0.00029,2]
[355133993,1740933046410,-150.0,0.00029041,2]
[355133995,1740933046419,-343.75,0.00029041,2]
[355133998,1740933046429,-150.0,0.00029041,2]
[355134000,1740933046439,-1190.3661367,0.00029075,2]
[355134002,1740933046449,-12529.27076866,0.0002908,2]
[355134004,1740933046458,-1780.43,0.00029113,2]
[355134006,1740933046468,-1766.43,0.00029113,2]
[355134008,1740933046477,-2064.99,0.00029113,2]
[355134009,1740933046488,-967.55,0.00029113,2]
[355134011,1740933046498,-2636.7,0.00029113,2]
[355134013,1740933046508,-3370.38,0.00029113,2]
[355134015,1740933046518,-500.0,0.00029113,2]
[355134017,1740933046528,-2527.69,0.00029113,2]
[355134019,1740933046538,-500.0,0.00029113,2]
[355134021,1740933046549,-1377.28,0.00029113,2]
[355134023,1740933046560,-1468.82,0.00029113,2]
[355134026,1740933046571,-2589.67,0.00029113,2]
[355134028,1740933046581,-500.0,0.00029113,2]
[355134030,1740933046590,-859.66,0.00029113,2]
[355134032,1740933046600,-3342.39,0.00029113,2]
[355134034,1740933046609,-2289.74,0.00029113,2]
[355134036,1740933046619,-1696.58,0.00029113,2]
[355134038,1740933046628,-1556.12,0.00029113,2]
[355134040,1740933046638,-1358.69,0.00029113,2]
[355134041,1740933046648,-2566.54,0.00029113,2]
[355134042,1740933046661,-1671.71,0.00029113,2]
[355134043,1740933046670,-200.19,0.00029113,2]
[355134044,1740933046680,-590.6,0.00029113,2]
[355134045,1740933046691,-500.0,0.00029113,2]
[355134046,1740933046700,-870.39,0.00029113,2]
[355134047,1740933046711,-1104.72,0.00029113,2]
[355134048,1740933046721,-1643.4,0.00029113,2]
[355134049,1740933046733,-500.0,0.00029113,2]
[355134050,1740933046743,-920.95021463,0.00029113,2]
[355134051,1740933046752,-1124.31,0.00029113,2]
[355134053,1740933046762,-500.0,0.00029113,2]
[355134055,1740933046775,-1524.19,0.00029113,2]
[355134057,1740933046786,-500.0,0.00029113,2]
[355134059,1740933046795,-651.25815868,0.00029167,2]
[355134061,1740933046805,-1021.47069038,0.00029167,5]
[355134063,1740933046815,-319.86794637,0.00029167,2]
[355134065,1740933046825,-5793.94559355,0.0002921,5]
[355134067,1740933046834,-763.93,0.00029213,2]
[355134069,1740933046843,-1134.8,0.00029213,2]
[355134070,1740933046853,-963.88,0.00029213,2]
[355134072,1740933046863,-500.0,0.00029213,2]
[355134074,1740933046873,-1533.95,0.00029213,2]
[355134076,1740933046883,-1124.85,0.00029213,2]
[355134078,1740933046893,-312.100828,0.00029213,2]
[355134080,1740933046903,-1433.65,0.00029213,2]
[355134082,1740933046918,-800.42,0.00029213,2]
[355134084,1740933046928,-5835.41,0.00029213,2]
[355134097,1740933047042,-736.17,0.00029213,2]
[355134099,1740933047051,-3330.98,0.00029213,2]
[355134101,1740933047061,-1910.47,0.00029213,2]
[355134103,1740933047071,-649.44,0.00029213,2]
[355134105,1740933047082,-560.059385,0.00029213,2]
[355134107,1740933047091,-1209.05,0.00029213,2]
[355134109,1740933047101,-2388.08,0.00029213,2]
[355134111,1740933047110,-2110.64,0.00029213,2]
[355134113,1740933047120,-2708.7,0.00029213,2]
[355134115,1740933047130,-1814.61,0.00029213,2]
[355134117,1740933047140,-1742.95,0.00029213,2]
[355134119,1740933047151,-2215.8,0.00029213,2]
[355134121,1740933047166,-377.68765712,0.00029213,2]
[355134123,1740933047176,-2314.72,0.00029213,2]
[355134125,1740933047187,-2871.07,0.00029213,2]
[355134127,1740933047197,-700.4,0.00029213,2]
[355134128,1740933047207,-3633.24,0.00029213,2]
[355134131,1740933047218,-500.0,0.00029213,2]
[355134133,1740933047228,-975.85,0.00029213,2]
[355134135,1740933047238,-500.0,0.00029213,2]
[355134136,1740933047249,-2215.46,0.00029213,2]
[355134138,1740933047259,-1669.71,0.00029213,2]
[355134140,1740933047268,-3249.91,0.00029213,2]
[355134143,1740933047279,-674.46,0.00029213,2]
[355134145,1740933047296,-390.71392104,0.00029236,2]
[355134147,1740933047306,-193.2731185,0.00029257,2]
[355134149,1740933047316,-193.2731185,0.00029257,2]
[355134151,1740933047327,-666.0,0.00029265,10]
[355134152,1740933047338,-263.52889134,0.00029266,10]
[355134154,1740933047348,-151.0,0.00029266,7]
[355134156,1740933047359,-151.0,0.00029266,7]
[355134158,1740933047370,-194.057304,0.00029266,7]
[355134160,1740933047380,-194.057304,0.00029266,7]
[355134162,1740933047390,-390.276846,0.00029266,7]
[355134164,1740933047399,-390.276846,0.00029266,7]
[355134166,1740933047414,-1798.165548,0.00029266,7]
[355134168,1740933047423,-1798.165548,0.00029266,7]
[355134170,1740933047433,-151.0,0.00029266,7]
[355134172,1740933047442,-255.802728,0.00029266,7]
[355134174,1740933047452,-151.0,0.00029266,7]
[355134176,1740933047463,-255.802728,0.00029266,7]
[355134178,1740933047472,-151.0,0.00029266,7]
[355134180,1740933047482,-151.0,0.00029266,7]
[355134182,1740933047492,-1557690.66515405,0.00029266,7]
[355134184,1740933047501,-163.43783851,0.00029266,7]
[355134186,1740933047510,-9433.04531385,0.00029266,15]
[355134188,1740933047520,-446.17188953,0.00029267,2]
[355134190,1740933047530,-1058.58889951,0.00029267,2]
[355134192,1740933047540,-2500.0,0.00029267,2]
[355134194,1740933047550,-574.71800898,0.00029267,2]
[355134196,1740933047559,-339.50122533,0.00029267,2]
[355134198,1740933047569,-1100.0,0.00029267,2]
[355134200,1740933047578,-905.06893089,0.00029267,2]
[355134202,1740933047588,-477.78291579,0.00029267,2]
[355134204,1740933047599,-168.89283267,0.00029267,2]
[355134206,1740933047609,-227.77488552,0.00029267,2]
[355134208,1740933047620,-1573.54508195,0.00029267,2]
[355134210,1740933047630,-24035.83491039,0.00029267,2]
[355134212,1740933047639,-36406.2966499,0.00029267,2]
[355134214,1740933047650,-543.25342608,0.00029267,2]
[355134216,1740933047665,-4967.50025973,0.00029267,2]
[355134218,1740933047675,-5155.87767234,0.00029267,2]
[355134220,1740933047685,-1003.23459851,0.00029267,2]
[355134222,1740933047695,-361.72367402,0.00029267,2]
[355134224,1740933047705,-2186.90956384,0.00029267,2]
[355134226,1740933047714,-281.30272456,0.00029267,2]
[355134228,1740933047725,-14648.14297298,0.00029267,2]
[355134230,1740933047735,-1821.15398613,0.00029267,2]
[355134232,1740933047745,-1108.15429999,0.00029267,2]
[355134233,1740933047756,-13944.86883227,0.00029267,2]
[355134235,1740933047767,-218.43405236,0.00029267,2]
[355134237,1740933047777,-10109.14538362,0.00029267,2]
[355134239,1740933047787,-279.0,0.00029267,2]
[355134241,1740933047797,-1691.08526348,0.00029267,2]
[355134243,1740933047807,-200.98902407,0.00029267,2]
[355134245,1740933047818,-280.20548217,0.00029267,2]
[355134247,1740933047827,-5633.40625637,0.00029267,2]
[355134249,1740933047837,-1004.17164262,0.00029267,2]
[355134251,1740933047847,-162.91,0.00029267,2]
[355134253,1740933047856,-48347.89759926,0.00029267,2]
[355134255,1740933047867,-31874847.71406381,0.00029267,45]
[355134289,1740933048216,-63169.18619216,0.00029267,45]
[355134292,1740933048228,-5867.82077386,0.00029267,45]
[355134294,1740933048241,-5980.71400742,0.00029267,45]
[355134327,1740933048596,-2049.3753,0.000239,2]
[355134329,1740933048607,-500.0,0.00026373,2]
[355134331,1740933048617,-500.0,0.00026373,2]
[355134333,1740933048627,-500.0,0.00026647,2]
[355134334,1740933048637,-500.0,0.00026647,2]
[355134336,1740933048647,-500.0,0.00026921,2]
[355134338,1740933048659,-500.0,0.00027195,2]
[355134341,1740933048668,-493.04930029,0.00027469,2]
[355134343,1740933048681,-6.95069971,0.00027469,2]
[355134345,1740933048691,-386.55635002,0.00027743,2]
[355134347,1740933048704,-113.44364998,0.00027743,2]
[355134350,1740933048722,-229.01135003,0.00027743,2]
[355134353,1740933048750,-270.98864997,0.00027743,2]
[355134357,1740933048775,-2167.92,0.00029113,2]
[355134360,1740933048798,-2248.97064165,0.00029167,2]
[355134363,1740933048818,-10317.45190451,0.00029267,45]
[355134367,1740933048858,-118833.73105754,0.00029267,45]
[355134375,1740933048931,-500.0,0.00026921,2]
[355134378,1740933048953,-500.0,0.00028017,2]
[355134381,1740933048971,-4300.0,0.00029267,45]
[355134384,1740933048996,-313161.90000001,0.00029267,45]
[355134389,1740933049035,-3878548.87296279,0.00029267,45]
[355134390,1740933049055,-265849.77884659,0.00029267,45]
[355134391,1740933049094,-2220.477,0.00029267,45]
[355134392,1740933049116,-6131.5,0.00029267,45]
[355134393,1740933049139,-919.00536768,0.00029267,45]
[355134394,1740933049161,-113099.79504651,0.00029267,45]
[355134395,1740933049184,-895358.56738437,0.00029267,45]
[355134398,1740933049229,-500.0,0.00027195,2]
[355134401,1740933049248,-500.0,0.00028291,2]
[355134403,1740933049266,-1261.30000004,0.00029267,45]
[355134406,1740933049292,-27660.6343,0.00029267,45]
[355134409,1740933049313,-486.6599995,0.00029267,45]
[355134412,1740933049334,-461.3799998,0.00029267,45]
[355134414,1740933049356,-542.843,0.00029267,45]
[355134416,1740933049377,-419.283033,0.00029267,45]
[355134419,1740933049397,-472.35,0.00029267,45]
[355134422,1740933049422,-551.32503,0.00029267,45]
[355134425,1740933049444,-30518.78791533,0.00029267,45]
[355134465,1740933050453,-17324.70202901,0.00029267,45]
[355134466,1740933050950,-407.30484608,0.00020195,2]
[355134467,1740933050960,-500.0,0.00026373,2]
[355134468,1740933050969,-374.68374627,0.00026373,2]
[355134469,1740933050979,-500.0,0.00026373,2]
[355134470,1740933050988,-500.0,0.00026647,2]
[355134471,1740933050997,-500.0,0.00026647,2]
[355134472,1740933051007,-500.0,0.00026921,2]
[355134473,1740933051016,-500.0,0.00027195,2]
[355134474,1740933051026,-500.0,0.00027469,2]
[355134475,1740933051036,-500.0,0.00027469,2]
[355134476,1740933051045,-225.69942131,0.00027743,2]
[355134477,1740933051057,-274.30057869,0.00027743,2]
[355134478,1740933051067,-500.0,0.00027743,2]
[355134479,1740933051076,-156.8,0.00028017,2]
[355134480,1740933051086,-287.46646892,0.00028565,2]
[355134481,1740933051095,-500.0,0.00028665,2]
[355134482,1740933051105,-500.0,0.00028939,2]
[355134483,1740933051114,-150.0,0.00029195,2]
[355134484,1740933051123,-86967.58134839,0.00029267,45]
[355134485,1740933051136,-2068.00000053,0.00029267,45]
[355134486,1740933051147,-1016.80843151,0.00029267,45]
[355134487,1740933051161,-228113.52776769,0.00029267,45]
[355134488,1740933051173,-3725.01924224,0.00029267,45]
[355134489,1740933051185,-208053.3139806,0.00029267,45]
[355134490,1740933051209,-500.0,0.00029213,2]
[355134491,1740933051219,-151.0,0.00029266,7]
[355134492,1740933051229,-3474.86428456,0.00029267,45]
[355134493,1740933051257,-500.0,0.00026373,2]
[355134494,1740933051267,-500.0,0.00026921,2]
[355134495,1740933051276,-35435.253311,0.00029267,45]
[355134496,1740933051293,-399.6086004,0.00029267,45]
[355134497,1740933051340,-1427.15200885,0.00029267,45]
[355134498,1740933051355,-5469.55208639,0.00029267,45]
[355134499,1740933051378,-89304.24418445,0.00029267,45]
[355134500,1740933051389,-2936.30643902,0.00029267,45]
[355134501,1740933053581,203.5,0.00025,120]
[355134526,1740933876890,2000.0,0.00024739,120]
[355134576,1740934091363,250.0,0.00013,2]
[355134577,1740934092453,300.0,0.00015,2]
[355134579,1740934093572,350.0,0.00017,2]
[355134637,1740934232390,-400.0,0.00019,2]
[355134641,1740934232401,-450.0,0.00021,2]
[355134645,1740934232411,-154.66,0.00021918,2]
[355134649,1740934232421,-450.0,0.00022195,2]
[355134653,1740934232431,-26485.76427931,0.00022439,2]
[355134658,1740934232447,-407.30484608,0.00022439,2]
[355134663,1740934232460,-867.79833198,0.00022538,2]
[355134668,1740934232471,-7554.01872948,0.00022539,2]
[355134674,1740934232494,-2443.7,0.00022539,2]
[355134684,1740934232522,-785.62531792,0.00022539,2]
[355134688,1740934232534,-1000.0,0.00022539,2]
[355134693,1740934232549,-12945.1542,0.00022539,2]
[355134698,1740934232562,-11156.14507736,0.00022539,2]
[355134707,1740934232595,-18119.44756401,0.00022539,2]
[355134710,1740934232666,-1272.33876648,0.00022539,2]
[355134711,1740934232679,-11559.06833335,0.00022539,2]
[355134712,1740934232694,-150.0,0.00022539,2]
[355134713,1740934232705,-450.0,0.00022539,2]
[355134714,1740934232715,-500.0,0.00023,2]
[355134715,1740934232729,-500.0,0.0002326,2]
[355134716,1740934232739,-1441.38,0.00023464,2]
[355134717,1740934232750,-150.0,0.00023863,2]
[355134718,1740934232761,-7831.8939,0.000239,2]
[355134719,1740934232771,-1200.0868,0.000239,2]
[355134720,1740934232781,-612.24404406,0.000239,3]
[355134721,1740934232791,-3137.932,0.00023988,5]
[355134722,1740934232800,-152.161,0.00023988,5]
[355134723,1740934232811,-612.24404387,0.00024107,3]
[355134724,1740934232821,-1276.0,0.00024187,2]
[355134725,1740934232830,-2029.0,0.00024187,2]
[355134726,1740934232840,-570.0,0.00024187,2]
[355134727,1740934232851,-785.0,0.00024187,2]
[355134728,1740934232860,-921.226,0.00024187,2]
[355134729,1740934232871,-810.546,0.00024187,2]
[355134730,1740934232882,-612.24404387,0.00024314,3]
[355134731,1740934232892,-612.24404387,0.00024521,3]
[355134732,1740934232902,-162.94,0.00024555,2]
[355134733,1740934232913,-187.01,0.00024599,2]
[355134734,1740934232923,-1000.0,0.00024601,2]
[355134735,1740934232933,-332.46,0.00024625,2]
[355134736,1740934232944,-150.0,0.00024682,7]
[355134737,1740934232954,-612.24404387,0.00024728,3]
[355134738,1740934232964,-349.33,0.00024744,2]
[355134739,1740934232973,-470.01,0.00024896,2]
[355134740,1740934232986,-612.24404387,0.00024934,4]
[355134741,1740934232997,-5650.05,0.00024977,2]
[355134742,1740934233007,-550.0,0.00025,2]
[355134743,1740934233017,-470.01,0.00025027,2]
[355134744,1740934233027,-612.24404387,0.00025141,4]
[355134745,1740934233038,-470.01,0.00025158,2]
[355134746,1740934233049,-250.0,0.00025266,2]
[355134747,1740934233059,-470.01,0.00025289,2]
[355134748,1740934233070,-612.24404387,0.00025348,4]
[355134749,1740934233083,-470.01,0.0002542,2]
[355134750,1740934233094,-470.01,0.00025551,2]
[355134751,1740934233106,-1000.0,0.00025552,2]
[355134752,1740934233117,-612.24404387,0.00025555,4]
[355134753,1740934233130,-2000.0,0.0002557,2]
[355134754,1740934233141,-500.0,0.00025589,2]
[355134755,1740934233153,-470.01,0.00025682,2]
[355134756,1740934233165,-1441.38,0.00025728,2]
[355134757,1740934233177,-612.24404387,0.00025762,4]
[355134758,1740934233188,-470.01,0.00025813,2]
[355134759,1740934233200,-470.01,0.00025944,2]
[355134760,1740934233210,-612.24404387,0.00025969,4]
[355134761,1740934233220,-470.01,0.00026075,2]
[355134762,1740934233235,-5159.95256961,0.00026173,2]
[355134763,1740934233253,-2806.01687041,0.00026173,2]
[355134764,1740934233265,-612.24404387,0.00026176,4]
[355134765,1740934233276,-470.01,0.00026206,2]
[355134766,1740934233288,-648.51469931,0.00026272,2]
[355134767,1740934233302,-1190.87951664,0.00026272,2]
[355134768,1740934233315,-1681.84440631,0.00026272,2]
[355134769,1740934233326,-318.33977703,0.00026272,2]
[355134770,1740934233336,-99.6848075,0.00026272,2]
[355134771,1740934233350,-1471.1479925,0.00026272,2]
[355134772,1740934233360,-250.7757,0.00026272,2]
[355134773,1740934233371,-60.15287488,0.00026272,2]
[355134774,1740934233384,-893.31231472,0.00026272,2]
[355134775,1740934233435,-363.65,0.00026272,2]
[355134776,1740934233450,-370.04022624,0.00026272,2]
[355134777,1740934236426,-382.18448416,0.00026272,2]
[355134778,1740934236437,-348.1107,0.00026273,2]
[355134779,1740934236447,-2842.1768,0.00026273,2]
[355134780,1740934236457,-2886.1977,0.00026273,2]
[355134781,1740934236467,-1804.37,0.00026273,2]
[355134782,1740934236480,-1000.0,0.00026273,120]
[355134783,1740934236491,-1478.313,0.00026273,2]
[355134784,1740934236500,-1740.4958,0.00026273,2]
[355134785,1740934236510,-2500.0,0.00026273,2]
[355134786,1740934236519,-470.01,0.00026337,2]
[355134787,1740934236529,-481.66,0.00026362,2]
[355134788,1740934236538,-504.47064203,0.00026363,2]
[355134789,1740934236547,-1205.15026183,0.00026371,10]
[355134790,1740934236557,-1038.58,0.00026371,2]
[355134791,1740934236567,-1030.42,0.00026371,2]
[355134792,1740934236577,-1220.49,0.00026371,2]
[355134793,1740934236587,-974.65,0.00026371,2]
[355134794,1740934236597,-1883.74,0.00026371,2]
[355134795,1740934236608,-1450.26,0.00026371,2]
[355134796,1740934236618,-500.0,0.00026371,2]
[355134797,1740934236630,-1403.46,0.00026371,2]
[355134798,1740934236640,-500.0,0.00026371,2]
[355134799,1740934236651,-746.03,0.00026371,2]
[355134800,1740934236662,-816.44,0.00026371,2]
[355134801,1740934236672,-500.0,0.00026371,2]
[355134802,1740934236689,-500.0,0.00026371,2]
[355134803,1740934236711,-500.0,0.00026371,2]
[355134804,1740934236722,-971.76,0.00026371,2]
[355134805,1740934236739,-1287.02,0.00026371,2]
[355134806,1740934236750,-863.73,0.00026371,2]
[355134807,1740934236761,-735.96,0.00026371,2]
[355134808,1740934236772,-905.51,0.00026371,2]
[355134809,1740934236783,-1390.21,0.00026371,2]
[355134810,1740934236793,-595.81,0.00026371,2]
[355134811,1740934236803,-500.0,0.00026371,2]
[355134812,1740934236814,-598.39,0.00026371,2]
[355134813,1740934236824,-500.0,0.00026371,2]
[355134814,1740934236834,-500.0,0.00026371,2]
[355134815,1740934236844,-1233.81,0.00026371,2]
[355134816,1740934236855,-890.18,0.00026371,2]
[355134817,1740934236865,-574.04,0.00026371,2]
[355134818,1740934236876,-500.0,0.00026371,2]
[355134819,1740934236886,-581.84,0.00026371,2]
[355134820,1740934236896,-825.61,0.00026371,2]
[355134821,1740934236906,-1005.08,0.00026371,2]
[355134822,1740934236917,-500.0,0.00026371,2]
[355134823,1740934236927,-721.2,0.00026371,2]
[355134824,1740934236937,-500.0,0.00026371,2]
[355134825,1740934236947,-500.0,0.00026371,2]
[355134826,1740934236957,-651.66,0.00026371,2]
[355134827,1740934236968,-500.0,0.00026372,2]
[355134828,1740934236979,-500.0,0.00026372,2]
[355134829,1740934236991,-601.32,0.00026372,2]
[355134830,1740934237002,-500.0,0.00026372,2]
[355134831,1740934237012,-582.32,0.00026372,2]
[355134832,1740934237024,-984.08,0.00026372,2]
[355134833,1740934237034,-500.0,0.00026372,2]
[355134834,1740934237044,-500.0,0.00026372,2]
[355134835,1740934237054,-500.0,0.00026372,2]
[355134836,1740934237064,-975.84,0.00026372,2]
[355134837,1740934237075,-500.0,0.00026372,2]
[355134838,1740934237085,-471.38755828,0.00026372,2]
[355134839,1740934237095,-454.98110996,0.00026372,2]
[355134840,1740934237106,-596.68,0.00026372,2]
[355134841,1740934237116,-500.0,0.00026372,2]
[355134842,1740934237126,-500.0,0.00026372,2]
[355134843,1740934237136,-500.0,0.00026372,2]
[355134844,1740934237146,-502.5,0.00026372,2]
[355134845,1740934237157,-500.0,0.00026372,2]
[355134846,1740934237167,-649.95,0.00026372,2]
[355134847,1740934237177,-500.0,0.00026372,2]
[355134848,1740934237187,-913.81,0.00026372,2]
[355134849,1740934237197,-500.0,0.00026372,2]
[355134850,1740934237206,-498.50580441,0.00026372,2]
[355134851,1740934237216,-500.0,0.00026372,2]
[355134852,1740934237230,-826.37,0.00026372,2]
[355134853,1740934237240,-500.0,0.00026372,2]
[355134854,1740934237250,-523.21,0.00026372,2]